bitfinex-derivatives/quotes_SOLF0:USTF0_20241021
["timestamp","ask_amount","ask_price","bid_price","bid_amount"]
[1729490184273,4.52,169.87,169.74,1.47366128]
[1729490184578,4.52,169.87,169.73,7.1702]
[1729490184779,4.52,169.87,169.74,1.47369414]
[1729490184973,4.52,169.87,169.75,2.8737925]
[1729490185179,4.52,169.87,169.73,7.1702]
[1729490185372,4.52,169.87,169.74,1.47369987]
[1729490185568,4.52,169.87,169.75,4.37576644]
[1729490185775,4.52,169.87,169.73,7.1702]
[1729490185977,2.9453,169.81,169.77,2.9458]
[1729490200382,4.52,169.82,169.79,2.9454]
[1729490200582,4.52,169.82,169.73,10.09673075]
[1729490200987,4.52,169.82,169.74,1.47362106]
[1729490201191,2.9452,169.81,169.77,2.9457]
[1729490206289,2.9452,169.81,169.78,1.47365555]
[1729490206488,2.9452,169.81,169.77,2.9457]
[1729490206689,7.4651,169.82,169.78,4.41910082]
[1729490206889,4.52,169.82,169.78,2.9455]
[1729490207289,4.52,169.82,169.79,1.47360082]
[1729490207490,4.52,169.82,169.78,2.9455]
[1729490207790,4.52,169.82,169.79,1.47360096]
[1729490207990,2.9452,169.81,169.78,2.9455]
[1729490208194,2.9452,169.81,169.79,1.47359412]
[1729490208396,2.9452,169.81,169.78,2.9455]
[1729490208591,2.9452,169.81,169.79,1.47359412]
[1729490208792,2.9452,169.81,169.78,2.9455]
[1729490209195,2.9452,169.81,169.79,1.47358272]
[1729490209389,2.9452,169.81,169.78,2.9455]
[1729490209796,2.9452,169.81,169.79,1.47360641]
[1729490210093,2.9452,169.81,169.78,2.9455]
[1729490210290,2.9452,169.81,169.79,1.47360493]
[1729490210491,2.9452,169.81,169.77,2.9458]
[1729490210698,2.9452,169.81,169.78,1.47360233]
[1729490210889,2.9452,169.81,169.79,1.47360233]
[1729490211085,2.9452,169.81,169.77,2.9458]
[1729490211290,2.9452,169.81,169.78,1.47360134]
[1729490211490,2.9452,169.81,169.79,1.47360134]
[1729490211694,2.9452,169.81,169.77,2.9458]
[1729490211892,2.9452,169.81,169.78,1.47360146]
[1729490212193,2.9452,169.81,169.79,1.47360146]
[1729490212396,2.9452,169.81,169.77,2.9458]
[1729490212595,2.9452,169.81,169.78,1.47360096]
[1729490212796,2.9452,169.81,169.79,1.47360096]
[1729490212999,2.9452,169.81,169.77,2.9458]
[1729490213198,2.9452,169.81,169.78,1.47359252]
[1729490213393,2.9452,169.81,169.79,1.47359252]
[1729490213594,2.9452,169.81,169.77,2.9458]
[1729490213802,2.9452,169.81,169.78,1.47359412]
[1729490214002,2.9452,169.81,169.79,1.47359412]
[1729490214202,2.9452,169.81,169.77,2.9458]
[1729490214399,2.9452,169.81,169.78,1.47360085]
[1729490214603,2.9452,169.81,169.79,1.47360085]
[1729490214802,2.9452,169.81,169.77,2.9458]
[1729490215103,2.9452,169.81,169.78,1.47360085]
[1729490215404,2.9452,169.81,169.79,1.47360085]
[1729490215592,2.9452,169.81,169.77,2.9458]
[1729490215796,2.9452,169.81,169.78,1.47360085]
[1729490216007,2.9452,169.81,169.79,1.47360085]
[1729490216196,2.9452,169.81,169.77,2.9458]
[1729490216501,2.9452,169.81,169.78,1.47359561]
[1729490216796,2.9452,169.81,169.79,1.47359561]
[1729490217001,2.9452,169.81,169.77,2.9458]
[1729490217203,2.9452,169.81,169.78,1.47360085]
[1729490217399,2.9452,169.81,169.79,1.47360085]
[1729490217604,2.9452,169.81,169.77,2.9458]
[1729490217801,2.9452,169.81,169.78,1.47360245]
[1729490218000,2.9452,169.81,169.79,1.47360245]
[1729490218197,2.9452,169.81,169.77,2.9458]
[1729490218394,2.9452,169.81,169.78,1.47360085]
[1729490218599,2.9452,169.81,169.79,1.47360085]
[1729490218900,2.9452,169.81,169.77,2.9458]
[1729490219101,2.9452,169.81,169.78,1.47359924]
[1729490219297,2.9452,169.81,169.77,2.9458]
[1729490219298,2.9452,169.81,169.79,1.47359924]
[1729490219601,2.9452,169.81,169.77,2.9458]
[1729490219802,2.9454,169.8,169.78,1.47360769]
[1729490220000,2.9454,169.8,169.79,1.47360769]
[1729490220202,2.5143,169.81,169.73,2.92653075]
[1729490220406,2.9459,169.77,169.74,1.47374245]
[1729490220601,2.9459,169.77,169.75,1.47374245]
[1729490221000,2.9459,169.77,169.76,1.47374245]
[1729490221196,2.9459,169.77,169.72,4.52]
[1729490221403,3.7692,169.81,169.73,1.47380266]
[1729490221603,3.7692,169.81,169.74,1.47380266]
[1729490221804,3.7692,169.81,169.75,1.47380266]
[1729490222100,2.9461,169.76,169.7,2.947]
[1729490222306,2.9461,169.76,169.71,1.47392662]
[1729490222503,2.9461,169.76,169.72,1.47392662]
[1729490222704,2.9461,169.76,169.73,1.47392662]
[1729490222905,2.9461,169.76,169.74,1.47392662]
[1729490223108,2.9461,169.76,169.69,4.52]
[1729490223407,4.52,169.78,169.7,1.47397576]
[1729490223602,4.52,169.78,169.71,1.47397576]
[1729490223807,2.9456,169.79,169.72,1.47397576]
[1729490224003,2.9454,169.8,169.73,2.91965725]
[1729490224202,2.9454,169.8,169.69,4.52]
[1729490224397,2.9454,169.8,169.76,2.9459]
[1729490224609,4.1852,169.81,169.75,3.01132948]
[1729490224806,1.2399,169.81,169.76,1.47378875]
[1729490225007,1.2399,169.81,169.77,1.47378596]
[1729490225207,2.9455,169.8,169.76,2.9459]
[1729490225404,2.9455,169.8,169.77,1.47378274]
[1729490225604,2.9455,169.8,169.76,2.9459]
[1729490225804,2.9455,169.8,169.77,1.47378374]
[1729490226004,2.9455,169.8,169.77,2.9458]
[1729490230218,2.9459,169.77,169.73,2.9464]
[1729490230510,2.4946,169.81,169.74,1.47382328]
[1729490230717,2.9458,169.78,169.75,1.47382328]
[1729490231015,2.9458,169.78,169.76,1.47382328]
[1729490231210,2.9458,169.78,169.74,2.9462]
[1729490231416,2.9458,169.78,169.75,1.47383759]
[1729490231605,2.9458,169.78,169.74,2.9462]
[1729490231919,2.9458,169.78,169.75,1.47383869]
[1729490232113,2.4946,169.81,169.74,2.9462]
[1729490232314,2.9459,169.77,169.75,1.47383869]
[1729490232614,2.9459,169.77,169.74,2.9462]
[1729490232807,2.4946,169.81,169.75,1.47383869]
[1729490233011,2.4946,169.81,169.72,1.2561]
[1729490233215,2.4946,169.81,169.73,1.4738773]
[1729490233414,2.4946,169.81,169.74,1.4738773]
[1729490233714,2.4946,169.81,169.75,1.4738773]
[1729490233917,2.946,169.77,169.73,2.9465]
[1729490234216,2.946,169.77,169.74,1.47387581]
[1729490234411,2.946,169.77,169.75,1.47387581]
[1729490234612,2.946,169.77,169.73,2.9465]
[1729490234919,2.946,169.77,169.74,1.47387593]
[1729490235110,2.946,169.77,169.75,1.47387593]
[1729490235315,2.946,169.77,169.73,2.9465]
[1729490235715,2.946,169.77,169.74,1.47387444]
[1729490235916,2.946,169.77,169.75,1.47387444]
[1729490236117,2.9456,169.79,169.73,2.89897174]
[1729490236317,2.9456,169.79,169.74,1.47379671]
[1729490236519,2.9456,169.79,169.76,2.946]
[1729490236821,2.9456,169.79,169.72,1.2561]
[1729490237017,2.9456,169.79,169.73,1.47380142]
[1729490237318,2.9456,169.79,169.74,1.47380142]
[1729490237522,2.9456,169.79,169.75,1.47380142]
[1729490237716,2.9456,169.79,169.76,1.47380142]
[1729490237912,2.9456,169.79,169.75,2.9462]
[1729490238118,2.9456,169.79,169.76,1.47379153]
[1729490238415,2.9456,169.79,169.75,2.9462]
[1729490238623,2.9456,169.79,169.76,1.47379153]
[1729490238815,2.9456,169.79,169.75,2.9462]
[1729490239017,2.9458,169.78,169.76,1.47379153]
[1729490239218,2.9458,169.78,169.74,2.9462]
[1729490239417,2.9458,169.78,169.75,1.47379153]
[1729490239724,2.9458,169.78,169.76,1.47379153]
[1729490239915,2.9458,169.78,169.74,2.9462]
[1729490240119,2.9458,169.78,169.75,4.41999153]
[1729490240320,2.9457,169.79,169.76,1.47379153]
[1729490240521,2.4946,169.81,169.75,2.9462]
[1729490240722,2.4946,169.81,169.76,1.47379155]
[1729490241023,2.4946,169.81,169.75,2.9462]
[1729490241224,2.4946,169.81,169.76,1.47379155]
[1729490241424,2.4946,169.81,169.75,2.9462]
[1729490241625,2.9457,169.79,169.76,1.47379507]
[1729490241825,2.9457,169.79,169.75,2.9462]
[1729490242022,2.9457,169.79,169.76,1.47379507]
[1729490242215,2.9457,169.79,169.75,2.9462]
[1729490242422,2.9457,169.79,169.76,1.47379155]
[1729490242725,2.9457,169.79,169.75,2.9462]
[1729490242926,2.9457,169.78,169.76,1.47381187]
[1729490243122,2.9457,169.78,169.75,2.9462]
[1729490243422,2.9457,169.78,169.74,2.9462]
[1729490243730,2.9457,169.78,169.75,1.47381187]
[1729490243917,2.9457,169.78,169.74,2.9462]
[1729490244121,2.9457,169.78,169.76,1.4737969]
[1729490244525,2.9457,169.78,169.74,2.9462]
[1729490244827,2.9457,169.78,169.75,1.47379006]
[1729490245019,2.9457,169.78,169.76,1.47379006]
[1729490245215,2.9457,169.78,169.74,2.9462]
[1729490245423,2.9457,169.78,169.75,1.47379491]
[1729490245717,2.9457,169.78,169.76,1.47379491]
[1729490246031,2.9457,169.78,169.74,2.9462]
[1729490246222,2.9457,169.78,169.75,1.47379342]
[1729490246524,2.9457,169.78,169.76,1.47379342]
[1729490246725,2.9457,169.78,169.74,2.9462]
[1729490247026,2.9457,169.78,169.75,1.47378559]
[1729490247227,2.9457,169.78,169.76,1.47378559]
[1729490247526,2.9457,169.78,169.74,2.9462]
[1729490247828,2.9457,169.78,169.75,1.47378559]
[1729490248027,2.9457,169.78,169.76,1.47378559]
[1729490248326,2.9457,169.78,169.77,1.47379243]
[1729490251529,2.9457,169.78,169.75,2.9462]
[1729490251730,2.9457,169.78,169.77,1.47379243]
[1729490252732,2.9464,169.74,169.68,4.5]
[1729490253424,2.9464,169.74,169.69,2.9471]
[1729490253729,4.5,169.78,169.68,4.5]
[1729490253923,2.9462,169.75,169.68,4.5]
[1729490254134,2.9462,169.75,169.71,2.9467]
[1729490254831,2.9462,169.75,169.72,2.9467]
[1729490256737,2.9459,169.77,169.74,2.9463]
[1729490260636,2.9456,169.79,169.75,2.9461]
[1729490260835,7.4456,169.79,169.75,2.9461]
[1729490261430,7.4456,169.79,169.68,4.5]
[1729490261431,4.5,169.79,169.68,4.5]
[1729490261626,2.9458,169.78,169.74,2.9463]
[1729490263631,2.9458,169.78,169.7,4.5]
[1729490263632,2.9458,169.78,169.75,2.9462]
[1729490265433,2.9455,169.8,169.76,4.41977513]
[1729490265640,2.9455,169.8,169.76,2.946]
[1729490266040,1.2399,169.81,169.73,2.99317681]
[1729490266236,2.9452,169.81,169.74,1.47371014]
[1729490266429,2.9452,169.81,169.75,1.47371014]
[1729490266737,2.9452,169.81,169.76,1.47371014]
[1729490266937,2.9452,169.81,169.77,1.47371014]
[1729490267138,2.9452,169.81,169.77,2.9457]
[1729490269937,2.9452,169.81,169.78,1.47365535]
[1729490270236,2.9452,169.81,169.77,2.9457]
[1729490270639,4.5,169.82,169.74,4.5]
[1729490270842,4.5,169.82,169.75,1.47373749]
[1729490271142,4.5,169.82,169.76,1.47373749]
[1729490271346,4.5,169.82,169.71,4.5]
[1729490271541,4.5,169.82,169.72,1.47380641]
[1729490272038,4.5,169.82,169.71,4.5]
[1729490272039,2.9456,169.79,169.75,2.9462]
[1729490272347,2.9456,169.79,169.76,1.47380641]
[1729490272546,4.5,169.82,169.67,2.6228]
[1729490272743,4.5,169.82,169.68,1.47383615]
[1729490273050,4.5,169.82,169.69,1.47383615]
[1729490273241,2.9462,169.75,169.71,2.9468]
[1729490273549,4.5,169.76,169.72,1.47383615]
[1729490273741,4.5,169.76,169.73,1.47383615]
[1729490273950,4.5,169.76,169.7,2.9469]
[1729490273951,2.9464,169.75,169.7,2.9469]
[1729490274151,2.9464,169.75,169.71,1.4740351]
[1729490274341,2.9464,169.75,169.72,1.4740351]
[1729490274542,2.9464,169.75,169.73,1.4740351]
[1729490274744,2.9464,169.75,169.7,2.9469]
[1729490274943,2.9464,169.75,169.71,1.47403277]
[1729490275139,2.9464,169.75,169.7,2.9469]
[1729490275341,2.9464,169.75,169.71,1.47403328]
[1729490275546,2.9464,169.74,169.72,1.47403328]
[1729490275746,2.9464,169.74,169.7,2.9469]
[1729490275950,2.9464,169.74,169.71,1.47404375]
[1729490276150,2.9464,169.74,169.72,1.47404375]
[1729490276450,2.9464,169.74,169.7,2.9469]
[1729490276649,2.9464,169.74,169.71,1.47404176]
[1729490276848,2.9464,169.74,169.72,1.47404176]
[1729490277047,2.9464,169.74,169.7,2.9469]
[1729490277249,2.9464,169.74,169.71,1.47404027]
[1729490277546,2.9464,169.74,169.72,1.47404027]
[1729490277745,2.9464,169.74,169.7,2.9469]
[1729490277944,2.9464,169.74,169.71,1.47403033]
[1729490278144,2.9464,169.74,169.72,1.47403033]
[1729490278345,2.9464,169.74,169.7,2.9469]
[1729490278639,2.9464,169.74,169.71,1.47403033]
[1729490278844,2.9464,169.74,169.72,1.47403033]
[1729490279040,2.9464,169.74,169.7,2.9469]
[1729490279251,2.9464,169.74,169.71,1.47403878]
[1729490279546,2.9464,169.74,169.72,1.47403878]
[1729490279748,2.9464,169.74,169.7,2.9469]
[1729490280047,2.9464,169.74,169.71,1.47403878]
[1729490280351,2.9464,169.74,169.72,1.47403878]
[1729490280550,2.9464,169.74,169.71,2.9469]
[1729490280747,2.9464,169.74,169.72,1.47404039]
[1729490281054,2.9464,169.74,169.71,2.9469]
[1729490281241,2.9464,169.74,169.72,1.47404039]
[1729490281446,2.9464,169.74,169.71,2.9469]
[1729490282344,2.9464,169.74,169.72,1.47403878]
[1729490282547,2.9464,169.74,169.73,1.47403878]
[1729490285541,2.9464,169.74,169.71,2.9469]
[1729490285746,2.9464,169.74,169.72,1.47402594]
[1729490286048,2.9464,169.74,169.73,1.47402594]
[1729490291357,2.9464,169.74,169.71,2.9469]
[1729490291547,2.9464,169.74,169.72,1.47404152]
[1729490291753,2.9464,169.74,169.71,2.9469]
[1729490291949,2.9464,169.74,169.72,1.47403718]
[1729490292157,2.9464,169.74,169.71,2.9469]
[1729490292359,2.9464,169.74,169.72,1.47403878]
[1729490292659,2.9464,169.74,169.71,2.9469]
[1729490292860,2.9464,169.74,169.72,1.47403718]
[1729490293051,2.9464,169.74,169.71,2.9469]
[1729490293248,2.9464,169.74,169.72,1.47404314]
[1729490293456,2.9464,169.74,169.71,2.9469]
[1729490293758,2.9464,169.74,169.72,1.47404425]
[1729490293952,2.9464,169.74,169.71,2.9469]
[1729490294148,2.9464,169.74,169.72,1.47404918]
[1729490294353,2.9464,169.74,169.71,2.9469]
[1729490295154,2.9468,169.72,169.68,2.9474]
[1729490295360,2.9468,169.72,169.69,1.47418024]
[1729490295556,2.9468,169.72,169.7,1.47418024]
[1729490295856,2.9468,169.72,169.68,2.9474]
[1729490296061,2.9468,169.72,169.69,1.47418233]
[1729490296353,2.9468,169.72,169.7,1.47418233]
[1729490296560,2.9468,169.72,169.68,2.9474]
[1729490296753,2.9468,169.72,169.69,1.47418537]
[1729490297060,2.9468,169.72,169.7,1.47418537]
[1729490297260,2.9468,169.72,169.68,2.9474]
[1729490297465,2.9468,169.72,169.69,1.47418698]
[1729490297759,2.9468,169.72,169.7,1.47418698]
[1729490297962,2.9468,169.72,169.68,2.9474]
[1729490298160,2.9468,169.72,169.69,1.47418698]
[1729490298460,2.9468,169.72,169.7,1.47418698]
[1729490298659,2.9468,169.72,169.68,2.9474]
[1729490298861,2.9468,169.72,169.69,1.47418698]
[1729490299057,2.9468,169.72,169.7,1.47418698]
[1729490299260,2.9468,169.72,169.68,2.9474]
[1729490299561,2.9468,169.72,169.69,1.47418698]
[1729490299764,2.9468,169.72,169.7,1.47418698]
[1729490299963,2.9468,169.72,169.68,2.9474]
[1729490300163,2.9468,169.72,169.69,1.47418698]
[1729490300355,2.9468,169.72,169.7,1.47418698]
[1729490300552,2.9468,169.72,169.68,2.9474]
[1729490300756,2.9468,169.72,169.69,1.47419138]
[1729490300961,2.9468,169.72,169.7,1.47419138]
[1729490301159,2.9468,169.72,169.68,2.9474]
[1729490301355,2.9468,169.72,169.69,1.47419933]
[1729490301664,2.9468,169.72,169.68,2.9474]
[1729490301864,2.9468,169.72,169.69,1.47419834]
[1729490302060,2.9468,169.72,169.7,1.47419834]
[1729490302268,2.9468,169.72,169.68,2.9474]
[1729490302569,2.9468,169.72,169.69,1.47419]
[1729490302767,2.9468,169.72,169.7,1.47419]
[1729490302968,2.9468,169.72,169.68,2.9474]
[1729490303169,2.9468,169.72,169.69,1.47417714]
[1729490303469,2.9468,169.72,169.7,1.47417714]
[1729490303669,2.9468,169.72,169.68,2.9474]
[1729490304069,2.9468,169.72,169.69,1.47418001]
[1729490304269,2.9468,169.72,169.7,1.47418001]
[1729490304570,2.9468,169.72,169.68,2.9474]
[1729490304773,2.9468,169.72,169.69,1.47417788]
[1729490305068,2.9468,169.72,169.7,1.47417788]
[1729490305270,2.9468,169.72,169.68,2.9474]
[1729490305568,2.9468,169.72,169.69,1.47417639]
[1729490305769,2.9468,169.72,169.7,1.47417639]
[1729490305968,2.9468,169.72,169.69,2.9472]
[1729490306169,2.9468,169.72,169.7,1.4741733]
[1729490306371,2.9468,169.72,169.69,2.9472]
[1729490306573,2.9468,169.72,169.7,1.47417441]
[1729490306772,2.9468,169.72,169.68,2.9473]
[1729490306974,2.9468,169.72,169.69,1.47417391]
[1729490307171,2.9468,169.72,169.7,1.47417391]
[1729490307375,2.9468,169.72,169.68,2.9473]
[1729490307570,2.9468,169.72,169.69,1.47417391]
[1729490307771,2.9468,169.72,169.7,1.47417391]
[1729490307967,2.9468,169.72,169.68,2.9473]
[1729490308174,2.9468,169.72,169.69,1.47417391]
[1729490308375,2.9468,169.72,169.7,1.47417391]
[1729490308580,2.9468,169.72,169.68,2.9473]
[1729490308876,4.5,169.74,169.69,4.42127391]
[1729490309071,4.5,169.75,169.7,1.47417391]
[1729490309272,4.5,169.75,169.69,2.9471]
[1729490309471,2.9467,169.73,169.7,1.47415304]
[1729490309672,2.9467,169.73,169.71,1.47415304]
[1729490309872,2.9467,169.73,169.69,2.9471]
[1729490310072,2.9467,169.73,169.7,1.47414822]
[1729490310374,2.9467,169.73,169.71,1.47414822]
[1729490310574,2.9467,169.73,169.69,2.9471]
[1729490310775,2.9467,169.73,169.7,1.47414078]
[1729490310977,2.9467,169.73,169.71,1.47414078]
[1729490311175,2.9467,169.73,169.69,2.9471]
[1729490311576,2.9467,169.73,169.7,1.47421669]
[1729490311779,2.9467,169.73,169.69,2.9471]
[1729490312078,2.9467,169.73,169.7,1.47421419]
[1729490312274,2.9467,169.73,169.69,2.9471]
[1729490312484,2.9467,169.73,169.7,1.4742046]
[1729490312778,2.9467,169.73,169.69,2.9471]
[1729490313080,2.9467,169.73,169.7,1.4742046]
[1729490313276,2.9467,169.73,169.69,2.9471]
[1729490313477,2.9467,169.73,169.7,1.47420942]
[1729490313679,2.9469,169.71,169.68,2.9474]
[1729490313877,2.9469,169.71,169.69,1.47422717]
[1729490314175,2.9469,169.71,169.65,2.6758]
[1729490314382,2.9469,169.71,169.66,1.4742273]
[1729490314580,2.9469,169.71,169.67,1.4742273]
[1729490314878,2.9469,169.71,169.68,4.42162881]
[1729490315178,2.9469,169.71,169.69,1.47422881]
[1729490315481,2.9472,169.7,169.66,2.9476]
[1729490315680,2.9472,169.7,169.67,1.47433067]
[1729490315975,2.9472,169.7,169.68,1.47433067]
[1729490316176,2.9472,169.7,169.66,2.9476]
[1729490319281,1.3226,169.74,169.64,2.96857136]
[1729490319484,4.5,169.75,169.63,4.5]
[1729490319887,2.9464,169.74,169.7,2.9469]
[1729490320885,4.5,169.76,169.64,4.5]
[1729490322590,2.9469,169.72,169.66,2.9476]
[1729490322787,2.9469,169.72,169.64,4.5]
[1729490323687,2.947,169.71,169.67,2.9475]
[1729490323990,2.947,169.71,169.68,1.47431521]
[1729490324393,2.947,169.71,169.69,1.47431521]
[1729490324585,2.947,169.71,169.67,2.9475]
[1729490324785,2.947,169.71,169.68,1.47428992]
[1729490324985,2.9472,169.7,169.69,1.47428992]
[1729490326188,2.9473,169.69,169.62,4.5]
[1729490326490,2.9473,169.69,169.63,1.47440889]
[1729490326690,4.5,169.72,169.65,2.9479]
[1729490326889,2.9473,169.69,169.66,1.47440889]
[1729490327092,2.9473,169.69,169.67,1.47440889]
[1729490327392,2.9473,169.69,169.62,4.5]
[1729490327592,2.9473,169.69,169.63,1.47448136]
[1729490327794,2.9473,169.69,169.64,1.47448136]
[1729490327995,2.9473,169.69,169.66,2.9477]
[1729490329792,2.9471,169.7,169.66,2.9477]
[1729490331195,2.9471,169.7,169.67,1.47448049]
[1729490331401,2.9471,169.7,169.66,2.9477]
[1729490331595,2.9471,169.7,169.67,1.47442645]
[1729490331801,2.9471,169.7,169.66,2.9477]
[1729490332006,2.9471,169.7,169.67,1.47442545]
[1729490332301,2.9471,169.7,169.66,2.9477]
[1729490332499,2.9471,169.7,169.67,1.47442382]
[1729490332704,2.9471,169.7,169.66,2.9477]
[1729490332898,2.9471,169.7,169.67,1.47442332]
[1729490333098,2.9471,169.7,169.66,2.9477]
[1729490333300,2.9471,169.7,169.67,1.47442332]
[1729490333498,2.9471,169.7,169.66,2.9477]
[1729490333697,2.9471,169.7,169.67,1.47442171]
[1729490333903,2.9471,169.7,169.66,2.9477]
[1729490334103,2.9471,169.7,169.67,1.47442519]
[1729490334402,2.9471,169.7,169.66,2.9477]
[1729490334593,2.9471,169.7,169.67,1.47442407]
[1729490334793,2.9471,169.7,169.66,2.9477]
[1729490335001,2.9471,169.7,169.67,1.47442308]
[1729490335202,2.9471,169.7,169.66,2.9477]
[1729490335401,2.9471,169.7,169.67,1.47442258]
[1729490335601,2.9471,169.7,169.66,2.9477]
[1729490335806,2.9471,169.7,169.67,1.47442319]
[1729490336000,2.9471,169.7,169.66,2.9477]
[1729490336204,2.9471,169.7,169.67,1.47442319]
[1729490336505,2.9471,169.7,169.66,2.9477]
[1729490336804,2.9471,169.7,169.67,1.47442319]
[1729490337005,2.9471,169.7,169.66,2.9477]
[1729490337205,2.9471,169.7,169.67,1.47442159]
[1729490337401,2.9471,169.7,169.66,2.9477]
[1729490337602,2.9471,169.7,169.67,1.47442159]
[1729490337803,2.9471,169.7,169.66,2.9477]
[1729490337998,2.9471,169.7,169.67,1.47442319]
[1729490338204,2.9471,169.7,169.66,2.9477]
[1729490338406,2.9471,169.7,169.67,1.47442319]
[1729490338608,2.9471,169.7,169.66,2.9477]
[1729490338906,2.9471,169.7,169.67,1.47441634]
[1729490339109,2.9471,169.7,169.66,2.9477]
[1729490339310,2.9471,169.7,169.67,1.47441634]
[1729490339611,2.9471,169.7,169.66,2.9477]
[1729490339809,2.9471,169.7,169.67,1.47442159]
[1729490340006,2.9471,169.7,169.66,2.9477]
[1729490340201,2.9471,169.7,169.67,1.47441474]
[1729490340406,2.9471,169.7,169.68,1.47441474]
[1729490340708,2.9471,169.7,169.66,2.9477]
[1729490340909,2.9471,169.7,169.67,1.47441634]
[1729490341201,2.9471,169.7,169.68,1.47441634]
[1729490341405,2.9471,169.7,169.66,2.9477]
[1729490341605,4.5,169.72,169.62,4.5]
[1729490341913,2.947,169.71,169.67,4.42182556]
[1729490342211,2.947,169.71,169.68,1.47442556]
[1729490342510,2.947,169.71,169.68,2.9473]
[1729490342705,4.48,169.73,169.62,4.5]
[1729490342906,4.48,169.73,169.63,1.47425441]
[1729490343112,4.48,169.73,169.7,2.9471]
[1729490343308,4.48,169.73,169.71,1.47425441]
[1729490343608,4.48,169.73,169.62,4.5]
[1729490343806,4.48,169.73,169.7,2.947]
[1729490344011,4.48,169.73,169.71,1.47414678]
[1729490344216,4.48,169.73,169.7,2.947]
[1729490344400,4.48,169.73,169.71,1.47414838]
[1729490344602,4.48,169.73,169.7,2.947]
[1729490344814,4.48,169.73,169.71,1.47414691]
[1729490345014,4.48,169.73,169.7,2.947]
[1729490345314,4.48,169.73,169.71,1.47414691]
[1729490345513,4.48,169.73,169.7,2.947]
[1729490345718,4.48,169.73,169.71,1.47415007]
[1729490346008,2.9465,169.74,169.7,2.947]
[1729490346217,2.9465,169.74,169.71,1.47415007]
[1729490346513,2.9465,169.74,169.7,2.947]
[1729490346717,2.9465,169.74,169.71,1.47414851]
[1729490346910,2.9465,169.74,169.7,2.947]
[1729490347111,2.9465,169.74,169.71,1.47414851]
[1729490347309,2.9465,169.74,169.7,2.947]
[1729490347503,2.9465,169.74,169.71,1.47414851]
[1729490347708,2.9465,169.74,169.7,2.947]
[1729490347913,2.9465,169.74,169.71,1.47414851]
[1729490348213,2.9465,169.74,169.7,2.947]
[1729490348409,2.9465,169.74,169.71,1.47414851]
[1729490348614,2.9465,169.74,169.7,2.947]
[1729490348810,2.9465,169.74,169.71,1.47414691]
[1729490349016,2.9465,169.74,169.7,2.947]
[1729490349214,2.9465,169.74,169.71,1.47414691]
[1729490349412,2.9465,169.74,169.7,2.947]
[1729490349613,2.9465,169.74,169.71,1.47414851]
[1729490349819,2.9465,169.74,169.7,2.947]
[1729490350022,2.9465,169.74,169.71,1.47414691]
[1729490350206,2.9465,169.74,169.7,2.947]
[1729490350514,4.48,169.75,169.71,1.47414691]
[1729490350711,2.9466,169.73,169.7,2.947]
[1729490350914,2.9466,169.73,169.71,1.4742323]
[1729490351114,2.9466,169.73,169.7,2.947]
[1729490352113,2.9466,169.73,169.71,1.47421271]
[1729490352321,2.9466,169.73,169.7,2.947]
[1729490352511,2.9466,169.73,169.71,1.47421807]
[1729490352708,2.9466,169.73,169.7,2.947]
[1729490353019,2.9466,169.73,169.71,1.47421913]
[1729490353224,2.9466,169.73,169.7,2.947]
[1729490353415,2.9466,169.73,169.71,1.47421764]
[1729490353615,2.9466,169.73,169.7,2.947]
[1729490353910,2.9466,169.73,169.71,1.47421714]
[1729490354113,2.9466,169.73,169.7,2.947]
[1729490354309,2.9466,169.73,169.71,1.47421714]
[1729490354520,2.9466,169.73,169.7,2.947]
[1729490354719,2.9466,169.73,169.71,1.47421554]
[1729490355022,2.9466,169.73,169.7,2.947]
[1729490355219,2.9466,169.73,169.71,1.47421554]